Cogmind - Beta 13 @@@ ROGUE MODE // 2024.07.10 @ 12:31:04 Player: ThatBishHoly Result: Destroyed by G-34 Mercenary with Small Laser Performance ------------- Evolutions (0) 0 Regions Visited (1) 200 Robots Destroyed (6) 30 Value Destroyed (117) 117 Prototype IDs (0) 0 Alien Tech Used (0) 0 Bonus (0) 0 TOTAL SCORE: 347 Bonus ------- None Cogmind --------- Core Integrity 0/250 Matter 324/350 Energy 250/250 System Corruption 3% Temperature Cool (6) Movement Rolling (100) Location -10/Materials Parts ------- > --- POWER (1) -------- Ion Engine > --- PROPULSION (2) --- Compact Wheel > --- UTILITY (2) ------ Small Matter Pod > --- WEAPON (2) ------- (None) > --- INVENTORY (5) ---- Aluminum Leg Aluminum Leg Peak State ------------ > --- POWER ------------ Light Ion Engine > --- PROPULSION ------- Wheel Wheel > --- UTILITY ---------- Small Matter Pod Tractor Beam > --- WEAPON ----------- Assault Rifle Light Assault Rifle > --- INVENTORY -------- Aluminum Leg Aluminum Leg [Rating: 7] Favorites ----------- Power Light Ion Engine Engine Light Ion Engine Propulsion Wheel Wheel Wheel Utility Tractor Beam Device Tractor Beam Storage Small Matter Pod Weapon Light Assault Rifle Ballistic Gun Light Assault Rifle Build | -11 -10 ------- Run | Yrd Mat Slots Evolved . | . . Power . | . . Propulsion . | . . Utility . | . . Weapon . | . . Parts Attached 10 | 5 5 Power 2 | 1 1 Engine 2 | 1 1 Core . | . . Reactor . | . . Propulsion 4 | 2 2 Treads . | . . Leg . | . . Wheel 4 | 2 2 Hover . | . . Flight . | . . Utility 2 | . 2 Device 1 | . 1 Storage 1 | . 1 Processor . | . . Hackware . | . . Protection . | . . Artifact . | . . Weapon 2 | 2 . Energy Gun . | . . Energy Cannon . | . . Ballistic Gun 2 | 2 . Ballistic Cannon . | . . Launcher . | . . Special Weapon . | . . Impact Weapon . | . . Slashing Weapon . | . . Piercing Weapon . | . . Special Melee Weapon . | . . Unidentified Prototypes . | . . Parts Lost 6 | . 6 Power 1 | . 1 Propulsion 2 | . 2 Utility 1 | . 1 Weapon 2 | . 2 Highest Loss Streak 5 | . 5 To Critical Strikes . | . . Average Slot Usage (%) 82 | . 82 Engine 12 | . 12 Wheel 27 | . 27 Device 9 | . 9 Storage 4 | . 4 Ballistic Gun 25 | . 25 Naked Turns . | . . Heaviest Build 8 | 6 8 Greatest Support 26 | 20 26 Greatest Overweight (x) 1 | 1 . Average Overweight (x) . | . . Largest Inventory Capacity 5 | 5 5 Average Capacity 5 | 5 5 Most Carried 4 | 3 4 Average Carried 1 | . 1 Final Capacity 5 | 5 5 Final Carried 2 | . 2 Class Distribution -------------------- 100% | Mutant Dominant Class ---------------- Mutant | -10/Materials Resources | -11 -10 ----------- Run | Yrd Mat Matter Collected 414 | 209 205 Remotely 188 | . 188 Salvage Created 208 | . 208 Parts 14 | . 14 Haulers Intercepted . | . . Recyclers Shooed 3 | . 3 Parts Field Recycled . | . . Retrieved Matter . | . . Parts Self-Destructed . | . . Prevented . | . . Kills | -11 -10 ------- Run | Yrd Mat Combat Hostiles Destroyed 5 | . 5 Guns 5 | . 5 Classes Destroyed 3 | . 3 Recycler 1 | . 1 Swarmer 3 | . 3 Grunt 2 | . 2 Best Kill Streak 3 | . 3 Combat Bots Only 3 | . 3 Max Kills in Single Turn 1 | . 1 Gunslinging . | . . Exploded . | . . Melee . | . . Uniques/NPCs Destroyed . | . . Combat | -11 -10 -------- Run | Yrd Mat Hostile Shots Fired 76 | . 76 Missed 24 | . 24 Damage Taken 655 | . 655 Core 258 | . 258 Absorbed by Shields . | . . Core Remaining (%) 100 | 100 . Volleys Fired 40 | . 40 Largest 2 | . 2 Hottest 40 | . 40 Shots Fired 64 | . 64 Gun 64 | . 64 Cannon . | . . Launcher . | . . Special . | . . Kinetic 64 | . 64 Thermal . | . . Explosive . | . . Electromagnetic . | . . Robot Hit Streak 11 | . 11 Robot Miss Streak 5 | . 5 Penetration Max . | . . Secondary Targets 3 | . 3 Max Gunslinging Chain 1 | . 1 Shots Hit Robots 42 | . 42 Core Hits 16 | . 16 Critical Kills . | . . Critical Parts Destroyed . | . . Critical Strikes . | . . Melee Attacks . | . . Impact . | . . Slashing . | . . Piercing . | . . Sneak Attacks . | . . Combat Hostiles . | . . Follow-up Attacks . | . . Damage Inflicted 464 | . 464 Guns 420 | . 420 Cannons . | . . Explosions . | . . Melee . | . . Ramming 44 | . 44 Kinetic 420 | . 420 Thermal . | . . Explosive . | . . Electromagnetic . | . . Impact . | . . Slashing . | . . Piercing . | . . Highest Corruption 3 | . 3 Average Corruption 2 | . 2 Corruption Purged . | . . Corruption Blocked . | . . Effects 7 | . 7 Matter Fused 1 | . 1 Heat Flow Errors 2 | . 2 Energy Discharges 1 | . 1 Data Loss (minor) 1 | . 1 Data Loss (major) 1 | . 1 Misfires 1 | . 1 Overload Shots . | . . Overflow Damage . | . . Projectiles . | . . Explosions . | . . Melee . | . . Knockbacks . | . . Impact . | . . Kinetic . | . . Secondary . | . . Self-Inflicted Damage 19 | . 19 Shots . | . . Rammed 7 | . 7 Targets Rammed 7 | . 7 Kicked . | . . Crushed . | . . Highest Temperature 244 | . 244 Average Temperature 49 | . 49 Received Heat Transfer 351 | . 351 Siege Activations . | . . Robots Corrupted . | . . Combat Hostiles . | . . Parts Fried . | . . Impact Corruptions . | . . Robots Melted . | . . Combat Hostiles . | . . Parts Melted . | . . Heat Transferred . | . . Parts Sabotaged . | . . Parts Stolen . | . . Parts Stripped . | . . Power Chain Reactions . | . . Alert | -11 -10 ------- Run | Yrd Mat Peak Influence 90 | . 90 Initial . | . . Average 25 | . 28 Maximum Alert Level . | . . Low Security (%) 100 | 100 100 Level 1 . | . . Level 2 . | . . Level 3 . | . . Level 4 . | . . Level 5 . | . . High Security . | . . Max Security . | . . Squads Dispatched 1 | . 1 Investigation . | . . Extermination . | . . Reinforcement 1 | . 1 Assault . | . . Garrison . | . . Intercept . | . . Searches Triggered . | . . Construction Impeded . | . . Haulers Reinforced . | . . Active Scanning Responses . | . . Cargo Convoy Interrupts . | . . Stealth | -11 -10 --------- Run | Yrd Mat Distress Signals . | . . Communications Jammed . | . . Distress Signals . | . . Times Spotted 16 | . 16 Peak Tracking Total 4 | . 4 Tactical Retreats . | . . Traps | -11 -10 ------- Run | Yrd Mat Traps Triggered 2 | . 2 Indirectly . | . . Trap Hack Attempts . | . . Triggered . | . . Disarmed . | . . Reprogrammed . | . . Reused . | . . Traps Extracted . | . . Installed . | . . Triggered . | . . Machines | -11 -10 ---------- Run | Yrd Mat Machines Disabled . | . . Max in Single Turn . | . . Machines Repaired . | . . Machines Dismantled . | . . Machines Sabotaged . | . . Overloaded Fab Kills . | . . Hacking | -11 -10 --------- Run | Yrd Mat Machines Accessed 2 | . 2 Terminals 2 | . 2 Fabricators . | . . Repair Stations . | . . Recycling Units . | . . Scanalyzers . | . . Garrison Access . | . . Total Hacks 3 | . 3 Successful 1 | . 1 Failed 2 | . 2 Catastrophic . | . . Database Lockouts . | . . Manual . | . . Terminals 3 | . 3 Fabricators . | . . Repair Stations . | . . Recycling Units . | . . Scanalyzers . | . . Garrison Access . | . . Terminal Hacks 1 | . 1 Hauler Manifests 1 | . 1 Fabricator Hacks . | . . Repair Station Hacks . | . . Recycling Unit Hacks . | . . Scanalyzer . | . . Garrison Access Hacks . | . . Unauthorized Hacks . | . . Terminals . | . . Fabricators . | . . Repair Stations . | . . Recycling Units . | . . Scanalyzers . | . . Garrison Access . | . . Data Cores Recovered . | . . Used . | . . Hacking Detections 2 | . 2 Full Trace Events . | . . Feedback Events . | . . Feedback Blocked . | . . Robot Schematics Acquired . | . . Robots Built . | . . Authchips . | . . Time . | . . Total Robot Build Rating . | . . Part Schematics Acquired . | . . Parts Built . | . . Authchips . | . . Time . | . . Total Part Build Rating . | . . Parts Repaired . | . . Time . | . . Parts Recycled . | . . Recycled Matter . | . . Retrieved Matter . | . . Retrieved Components . | . . Parts Scanalyzed . | . . Part Schematics Acquired . | . . Parts Damaged . | . . Bothacking | -11 -10 ------------ Run | Yrd Mat Used RIF Installer . | . . Robots Hacked . | . . Non-combat . | . . Combat . | . . Robot Hacks Applied . | . . Relay Couplers Released . | . . Fabnet Peak Effective % . | . . Robots Rewired . | . . Allies Hacked . | . . Hacks Repelled . | . . Allies | -11 -10 -------- Run | Yrd Mat Total Allies . | . . Largest Group . | . . Highest-Rated Group . | . . Highest-Rated Ally . | . . Total Orders . | . . Ally Attacks . | . . Total Damage . | . . Kills . | . . Allies Corrupted . | . . Allies Melted . | . . Intel | -11 -10 ------- Run | Yrd Mat Robot Analysis Total . | . . Derelict Logs Recovered . | . . Drone Launches . | . . Drone Recoveries . | . . Exploration | -11 -10 ------------- Run | Yrd Mat Turns Passed 604 | 56 548 Spaces Moved 411 | 59 352 Core 9 | 9 . Treads . | . . Legs . | . . Wheels 402 | 50 352 Hover . | . . Flight . | . . Fastest Speed 50 | 50 80 Average Speed 82 | 78 82 Slowest Speed 100 | 100 100 Overloaded Moves . | . . Propulsion Burnouts . | . . Robots Hopped . | . . Cave-ins Triggered . | . . Exploration Rate (%) 21 | 4 39 Regions Visited 1 Branch Regions . Pre-discovered Areas . | . . Known Exits Taken . | . . Unknown Exits Taken 1 | 1 . Scrap Searched . | . . Spaces Dug . | . . Terrain Destroyed . | . . Melee . | . . Projectile . | . . AOE . | . . Terrain Rammed . | . . Walls Destroyed . | . . Machines Disabled . | . . Actions | -11 -10 --------- Run | Yrd Mat Total 621 | 68 553 Wait 141 | . 141 Move 410 | 58 352 Hop . | . . Pick Up 12 | 5 7 Fast Attach . | . . Attach 9 | 5 4 Detach . | . . Swap 1 | . 1 Drop 1 | . 1 Fire 40 | . 40 Melee . | . . Ram 7 | . 7 Kick . | . . Crush . | . . Escape Stasis . | . . Rewire . | . . Trap . | . . Miscellaneous . | . . Route ------- -11/Scrapyard -10/Materials (discovered 1 exit: [*Min]) History --------- Turn | Location | Event 21 | -11/Scrapyard | Discovered new exit (range 15) 57 | -11/Scrapyard | Entered Materials 318 | -10/Materials | Build established: Mutant 387 | -10/Materials | Discovered new exit (range 8) 555 | -10/Materials | Core integrity fell below 50% 602 | -10/Materials | Core integrity fell below 20% 605 | -10/Materials | Destroyed by G-34 Mercenary with Small Laser Last Messages --------------- 00542_ Assault Rifle destroyed. 00544_ K-01 Serf cleans the Nuclear Reactor. 00546_ Lgt. Ion Engine destroyed. 00547_ K-01 Serf cleans the Nuclear Reactor. 00549_ K-01 Serf cleans the Atomic Centrifuge. 00552_ Critical hit (Burn: +37). 00558_ G-34 Mercenary destroyed. 00558_ K-01 Serf collects debris. 00560_ Critical hit (Burn: +37). 00562_ K-01 Serf collects debris. 00564_ Com. Wheel destroyed. 00574_ Lgt. Assault Rifle destroyed. 00576_ Slammed into G-47 Trooper. 00577_ System corrupted: Energy discharge (-26). 00581_ Acquired Ion Engine. 00582_ K-01 Serf cleans the Nuclear Reactor. 00591_ Acquired 6 matter. 00594_ System corrupted: Matter fused (-9). 00597_ Wheel destroyed. 00603_ Slammed into G-47 Trooper. Map ----- +----------------------------------------------------+ | #???# # ! #??????????????????????????? | | #####???# ########??????????????????????????? | | #?????# #?????????????????????????????????? | | #????## #?????????????????????????????????? | | ###### # #?????????????????????????????????? | | # # #?????????????????????????????????? | | #+###### # #?????????????????????????????????? | | #??##### #?????????????????????????????????? | | " #????###+#######???????????????????????????? | | T #????# #???????????????????????????? | | " #????# #???????????????????????????? | | #????# #???????????????????????????? | | #????# #???????????????????????????? | | #####????# #???????????????????????????? | | ?????????# """ """ #???????????????#???????????? | | ?????????# """ """ #?????????????? ????????????? | | ?????????# """ """ #????????????? ????????????? | | ?????????#####+################# ????????????? | | ??+##+####### ????????????? | | ?# ^ ????????????? | | ?# ^ """""^ k ????????????? | | ?# ^ """"" #####+?????????????? | | ?# g """"" #??????????????????? | | ?# #??????????????????? | | ?# g #??????????????????? | | ?# @ #??????????????????? | | ?? ########+##### #??????????????????? | | ?? ## ????# ## ##?????????????????? | | ??? # ????# # #?????????????????? | | ??? ??# ?????# %# T" #?????????????????? | | ??????# ?????# =" " #?????????????????? | | ??????# ??????# """# #?????????????????? | | ???????????????#* """# #?????????????????? | | ???????????????# """###w###?????????????????? | | ???????????????# #?# #???????????????????? | | ???????????????#######+#?# #???????????????????? | | ?????????????????????# #?# #???????????????????? | | ?????????????????????# ### ###???###+##########? | | ?????????????????????# # [ #???# # | #? | | ?????????????????????# # ##### # #? | | ?????????????????????# # < + """ #? | | ?????????????????????# # ##### # """ #? | | ???????????########### # #???# # """ #? | | ???????????#* ## #######???####### #? | | ???????????# """ ## ####################+###? | | ???????????# """ + % % % = #??? | | ???????????# """ ##%####################+###? | | ???????????/ ! ##*#????????????????# T # | | ???????????# """ ## #????????????????# # | | ???????????# """ ## #????????????????# """ # | +----------------------------------------------------+ Best States ------------- Heat Dissipation 25 Energy Generation 10 Energy Capacity 250 Matter Stores 350 Matter Capacity 350 Sight Range 16 Terrain Scan Density 10 Evasion (%) 44 Item Schematics ----------------- None Robot Schematics ------------------ None Fabricated ------------ Nothing Alien Tech Used ----------------- None Achievements -------------- None Challenges ------------ None Game ------ Seed VariableTitaniumAmplifier Manual? 0 Play Time 00:08:46 Cumulative 43.1 hours Start 2024.07.10 @ 12:23:48 End 2024.07.10 @ 12:31:04 Sessions 1 Manual Loads 0 Difficulty Rogue Special Mode None Game No. 123 Rogue 123 Adventurer 0 Explorer 0 Win Type - Total 0 Types 0/0/0/0/0/0/0/0/0 Lore% 18 Gallery% 36 Achievement% 25 Wizard Run 0 Options --------- Layout 0 ASCII 0 Keyboard 0 Movement Arrows Keybinds 0 Fullscreen 1 Font 12/Smallcaps Map View 38x28 Zoom Use 98% Tactical HUD 1 Map Filters NONE Filters NONE Steam SD RUN: c995a19d-ae70-4545-bfe1-a6db221dda66